fUSD/lending_fUSD_20251119
["ID","MTS","AMOUNT","RATE_DAILY","PERIOD"]
[394441044,1763574996628,335.20439049,0.000295,7]
[394441045,1763575036579,478.20968403,0.0003,2]
[394441046,1763575153722,152.00305552,0.0002985,20]
[394441047,1763575182549,955.45,0.00042198,30]
[394441048,1763575220679,500.0,0.00042198,120]
[394441049,1763575220910,500.0,0.00042198,120]
[394441050,1763575221142,500.0,0.00042198,120]
[394441051,1763575221394,500.0,0.00042198,120]
[394441052,1763575221645,500.0,0.00042198,120]
[394441053,1763575221897,500.0,0.00042198,120]
[394441054,1763575222148,500.0,0.00042198,120]
[394441055,1763575222439,500.0,0.00042198,120]
[394441056,1763575222677,500.0,0.00042198,120]
[394441057,1763575222943,500.0,0.00042198,120]
[394441058,1763575223345,500.0,0.00042198,120]
[394441059,1763575223410,500.0,0.00042198,120]
[394441060,1763575223708,500.0,0.00042198,120]
[394441061,1763575223981,500.0,0.00042198,120]
[394441062,1763575224220,500.0,0.00042198,120]
[394441063,1763575224538,500.0,0.00042198,120]
[394441064,1763575224825,296.59891456,0.00042198,120]
[394441065,1763575322533,250.0,0.00017,2]
[394441178,1763575830985,150.0,0.0002,2]
[394441179,1763575831256,150.0,0.0002,2]
[394441180,1763575831538,192.73689412,0.0002,2]
[394441181,1763575832219,-169.0,0.00033,14]
[394441182,1763575832228,-169.0,0.00033151,30]
[394441183,1763575832237,-169.0,0.00034521,30]
[394441184,1763575832246,-2751.0,0.00035859,120]
[394441186,1763575832256,-300.0,0.00035949,2]
[394441187,1763575832265,-2308.1314209,0.0003595,2]
[394441188,1763575832432,-14963.04155242,0.0003595,2]
[394441189,1763575832443,-30105.72398731,0.0003595,2]
[394441202,1763575838246,-9645.39231957,0.0003595,2]
[394441203,1763575838258,-510.0107198,0.0003595,2]
[394441204,1763575838267,-331.9749707,0.00035951,120]
[394441205,1763575838300,-208.8750293,0.00035951,120]
[394441206,1763575838310,-3973.33760313,0.00035951,2]
[394441207,1763575838409,-1173.47239687,0.00035951,2]
[394441208,1763575838419,-200.0,0.00035951,2]
[394441209,1763575838430,-200.0,0.00036197,2]
[394441210,1763575838439,-169.0,0.00036247,30]
[394441211,1763575838449,-177.9245273,0.00036367,2]
[394441212,1763575838459,-177.9245273,0.00036545,2]
[394441213,1763575838468,-162.0,0.000366,120]
[394441214,1763575838477,-6227.28,0.00036607,2]
[394441215,1763575838487,-4227.95,0.00036662,2]
[394441216,1763575838497,-445.65,0.00036695,2]
[394441217,1763575838507,-250.0,0.00036722,2]
[394441218,1763575838517,-150.0,0.00036888,7]
[394441219,1763575838527,-150.0,0.00036888,7]
[394441220,1763575838537,-150.0,0.00036888,7]
[394441221,1763575838546,-150.0,0.00036888,7]
[394441222,1763575838556,-150.0,0.00036888,7]
[394441223,1763575838565,-150.0,0.00036888,7]
[394441224,1763575838578,-150.0,0.00036888,7]
[394441226,1763575838587,-150.0,0.00036888,7]
[394441228,1763575838596,-4469.18165034,0.0003693,2]
[394441230,1763575838606,-151.05152738,0.0003693,2]
[394441232,1763575838615,-1436.93,0.00036952,2]
[394441234,1763575838624,-177.9245273,0.00036961,2]
[394441236,1763575838633,-348.0453633,0.00036973,5]
[394441238,1763575838643,-500.0,0.00036973,5]
[394441240,1763575838652,-500.0,0.00036973,5]
[394441242,1763575838661,-500.0,0.00036973,5]
[394441244,1763575838670,-500.0,0.00036973,5]
[394441246,1763575838680,-500.0,0.00036973,2]
[394441248,1763575838689,-500.0,0.00036973,5]
[394441250,1763575838698,-3419.76,0.00036986,30]
[394441252,1763575838707,-24665.3632276,0.0003699,4]
[394441254,1763575838716,-159.05930938,0.00036999,15]
[394441256,1763575838725,-200.25485513,0.00036999,15]
[394441258,1763575838734,-500.0,0.00036999,2]
[394441260,1763575838743,-3256.61548555,0.00037,2]
[394441262,1763575838757,-3192.9,0.00037,2]
[394441265,1763575838771,-2871.1857807,0.00037,2]
[394441267,1763575838782,-1708.29453559,0.00037,2]
[394441387,1763575840251,-151.0,0.00032877,90]
[394441388,1763575840260,-765.44534152,0.00037,2]
[394441389,1763575840271,-2333.0,0.00037,2]
[394441390,1763575840282,-2126.0,0.00037,2]
[394441391,1763575840293,-1740.23328001,0.00037,2]
[394441392,1763575840307,-2240.21046408,0.00037,2]
[394441393,1763575840318,-4815.55,0.00037,2]
[394441394,1763575840364,-249950.56511255,0.00037,2]
[394441395,1763575840373,-166.66,0.0003703,2]
[394441396,1763575840383,-172.65101055,0.00037059,28]
[394441397,1763575840392,-177.9245273,0.00037142,2]
[394441398,1763575840401,-500.0,0.00037198,30]
[394441399,1763575840411,-500.0,0.00037198,30]
[394441400,1763575840420,-962.19036525,0.00037324,5]
[394441401,1763575840429,-962.19036524,0.00037324,5]
[394441402,1763575840438,-6166.34080689,0.00037361,4]
[394441403,1763575840447,-4469.18165031,0.00037371,2]
[394441404,1763575840457,-165.64088205,0.00037382,15]
[394441405,1763575840466,-177.92452734,0.00037432,2]
[394441406,1763575840475,-1000.0,0.00037521,5]
[394441407,1763575840485,-1000.0,0.00037521,5]
[394441408,1763575840494,-151.0,0.00037564,2]
[394441409,1763575840504,-151.0,0.00037564,2]
[394441410,1763575840513,-151.0,0.00037564,2]
[394441411,1763575840522,-206.35089017,0.00037564,2]
[394441412,1763575840531,-500.0,0.00037573,5]
[394441413,1763575840541,-449.98992391,0.00037576,15]
[394441414,1763575840550,-6166.34080689,0.00037577,4]
[394441415,1763575840560,-10812.7892757,0.00037577,4]
[394441416,1763575840570,-59284.44189169,0.00037577,4]
[394441417,1763575840584,-3307.21390257,0.00037577,4]
[394441418,1763575840599,-853.3284752,0.00037577,4]
[394441419,1763575840610,-54956.6398277,0.00037577,4]
[394441420,1763575840621,-5638.7968325,0.00037577,4]
[394441421,1763575840632,-405.80618334,0.00037577,4]
[394441422,1763575840643,-1330.08239876,0.00037577,4]
[394441423,1763575840654,-6980.06561632,0.00037577,4]
[394441424,1763575840666,-1032.19999974,0.00037577,4]
[394441425,1763575840677,-51201.64907918,0.00037577,4]
[394441426,1763575840686,-9767.66445836,0.00037577,4]
[394441427,1763575840698,-5543.08830285,0.00037577,4]
[394441428,1763575840709,-35543.34967496,0.00037577,4]
[394441429,1763575840719,-846.00432761,0.00037577,4]
[394441430,1763575840730,-1694.18011838,0.00037577,4]
[394441431,1763575840741,-412.347975,0.00037577,4]
[394441432,1763575840753,-894.00476609,0.00037577,4]
[394441433,1763575840768,-312.04659627,0.00037577,4]
[394441442,1763575844069,-3436.37273109,0.00037577,4]
[394441443,1763575844126,-5365.78812859,0.00037577,4]
[394441444,1763575844138,-13861.35483276,0.00037577,4]
[394441445,1763575844168,-216.0,0.00037577,4]
[394441446,1763575845025,-271.70079059,0.00037577,4]
[394441447,1763575845036,-533.77400246,0.00037577,4]
[394441448,1763575845051,-16314.60883593,0.00037577,4]
[394441449,1763575845080,-544.15,0.00037577,4]
[394441450,1763575845091,-353.74500003,0.00037577,4]
[394441469,1763575846686,-7154.72709675,0.00037577,4]
[394441470,1763575846697,-601.85693993,0.00037577,4]
[394441471,1763575846707,-933.05918651,0.00037577,4]
[394441657,1763575929994,328.08988129,0.00042199,120]
[394441658,1763575944273,500.0,0.00042199,120]
[394441659,1763575944530,500.0,0.00042199,120]
[394441660,1763575944784,500.0,0.00042199,120]
[394441661,1763575945026,500.0,0.00042199,120]
[394441662,1763575945266,500.0,0.00042199,120]
[394441663,1763575945521,500.0,0.00042199,120]
[394441664,1763575945761,500.0,0.00042199,120]
[394441665,1763575946019,500.0,0.00042199,120]
[394441666,1763575946268,500.0,0.00042199,120]
[394441668,1763575951874,500.0,0.00042199,120]
[394441669,1763575952111,500.0,0.00042199,120]
[394441670,1763575952371,500.0,0.00042199,120]
[394441671,1763575952622,500.0,0.00042199,120]
[394441672,1763575952882,500.0,0.00042199,120]
[394441673,1763575953128,551.39147629,0.00042199,120]
[394441716,1763576236624,50000.0,0.000422,36]
[394441722,1763576244858,50000.0,0.000422,37]
[394441726,1763576248642,50000.0,0.000422,38]
[394441730,1763576253439,50000.0,0.000422,39]
[394441765,1763576436368,500.0,0.00042199,120]
[394441766,1763576436594,500.0,0.00042199,120]
[394441793,1763576529350,-3253.54,0.00033457,2]
[394441801,1763576546283,-250.0,0.00034728,2]
[394441802,1763576546310,-169.0,0.00036,30]
[394441803,1763576546335,-163.95,0.000361,2]
[394441804,1763576546362,-162.0,0.00036365,120]
[394441805,1763576546391,-500.0,0.00036737,2]
[394441806,1763576546413,-159.81,0.00036737,2]
[394441807,1763576546435,-2934.43,0.00036737,2]
[394441817,1763576568666,-477.25,0.00036534,2]
[394441818,1763576568699,-404.58,0.00036737,2]
[394441819,1763576568722,-340.37,0.00036737,2]
[394441820,1763576568745,-300.0,0.00036802,3]
[394441821,1763576568768,-1600.0,0.00036802,3]
[394441822,1763576568789,-400.0,0.00036802,3]
[394441823,1763576568811,-195.0,0.00036803,120]
[394441824,1763576568834,-250.0,0.00036803,2]
[394441825,1763576568855,-2500.0,0.00036803,120]
[394441826,1763576568876,-250.0,0.00036803,2]
[394441827,1763576568899,-282.8,0.00036803,119]
[394441837,1763576601884,150.0,0.00042199,30]
[394441852,1763576753703,2811.29,0.00015,10]
[394441857,1763576769751,156.51,0.00013699,2]
[394441858,1763576769963,156.51,0.00023182,2]
[394441859,1763576814504,22932.78595577,0.000162,5]
[394441863,1763576868236,2294.03302134,0.00013,15]
[394441864,1763576873501,1150.00284783,0.00015,10]
[394441869,1763576903809,1181.20604482,0.00018,2]
[394441879,1763576945935,-6360.0,0.000264,2]
[394441880,1763576949021,300.0,0.0002904,120]
[394441891,1763577031437,-0.18730255,0.000264,2]
[394441893,1763577031446,-250.0,0.00027029,2]
[394441894,1763577031455,-39.81269745,0.00027657,5]
[394441895,1763577031544,-380.18730255,0.00027657,5]
[394441896,1763577031553,-250.0,0.0002904,2]
[394441897,1763577031562,-250.0,0.00029563,2]
[394441898,1763577031572,-337.68597646,0.00031,5]
[394441899,1763577031581,-169.32158908,0.00031328,2]
[394441900,1763577031590,-201.95780874,0.00031428,2]
[394441901,1763577031600,-63.10037317,0.000319,2]
[394441902,1763577031611,-427.96968283,0.000319,2]
[394441903,1763577031621,-156.51,0.00032666,2]
[394441904,1763577031630,-208.82359152,0.00035814,2]
[394441905,1763577031639,-169.0,0.00036,30]
[394441906,1763577031648,-355.48116995,0.00036,4]
[394441907,1763577031658,-2163.29,0.00036146,2]
[394441908,1763577031667,-224.29,0.0003651,30]
[394441909,1763577031677,-152.0,0.00036817,3]
[394441910,1763577031690,-466.0,0.00036887,3]
[394441911,1763577031699,-150.0,0.00036888,7]
[394441912,1763577031708,-150.0,0.00036888,7]
[394441913,1763577031717,-150.0,0.00036888,7]
[394441914,1763577031726,-150.0,0.00036888,7]
[394441915,1763577031735,-150.0,0.00036888,7]
[394441916,1763577031746,-150.0,0.00036888,7]
[394441917,1763577031755,-150.0,0.00036888,7]
[394441918,1763577031765,-151.48800402,0.00036888,7]
[394441919,1763577031774,-150.0,0.00036888,7]
[394441920,1763577031784,-150.0,0.00036888,7]
[394441921,1763577031794,-142.95782628,0.00036888,7]
[394441922,1763577032187,-7.04217372,0.00036888,7]
[394441923,1763577032197,-150.0,0.00036888,7]
[394441924,1763577032207,-150.0,0.00036888,7]
[394441925,1763577032216,-502.92812101,0.000369,5]
[394441926,1763577032226,-500.0,0.00036986,2]
[394441927,1763577032235,-7001.71393854,0.00037,2]
[394441928,1763577032249,-518.77844467,0.00037199,30]
[394441929,1763577032259,-500.0,0.00037199,30]
[394441930,1763577032269,-500.0,0.00037199,30]
[394441931,1763577032279,-500.0,0.00037199,30]
[394441932,1763577032288,-500.0,0.00037199,30]
[394441933,1763577032298,-1209.0,0.0003733,2]
[394441934,1763577032308,-9999.99,0.00037331,2]
[394441935,1763577032318,-2783.33,0.00037331,2]
[394441936,1763577032328,-5552.28,0.00037331,2]
[394441937,1763577032337,-930.85,0.00037331,2]
[394441938,1763577032347,-700.83,0.00037397,2]
[394441939,1763577032357,-478.46,0.00037397,2]
[394441940,1763577032366,-700.83,0.00037397,2]
[394441941,1763577032375,-700.83,0.00037397,2]
[394441942,1763577032385,-700.83,0.00037397,2]
[394441943,1763577032395,-169.0,0.00037397,30]
[394441944,1763577032404,-169.32158907,0.000374,2]
[394441945,1763577032414,-700.83,0.00037405,2]
[394441946,1763577032425,-4518.80101738,0.00037464,2]
[394441947,1763577032556,-1214.86348706,0.00037464,2]
[394441948,1763577036776,-717.9556905,0.00037464,2]
[394441949,1763577036786,-182.91578709,0.00037465,16]
[394441950,1763577036795,-500.0,0.00037473,5]
[394441951,1763577036805,-1499.12852247,0.00037473,2]
[394441978,1763577037486,-361.72712921,0.00037473,2]
[394442103,1763577039614,-447.30297821,0.00037473,2]
[394442104,1763577039626,-1267.18669043,0.00037473,2]
[394442105,1763577039635,-165.64088204,0.00037476,15]
[394442106,1763577039644,-573.772,0.00037477,48]
[394442107,1763577039653,-170.957,0.00037477,48]
[394442108,1763577039663,-173.88526697,0.00037488,10]
[394442109,1763577039672,-2000.0,0.000375,2]
[394442110,1763577039681,-102.11816056,0.000375,2]
[394442111,1763577039693,-8861.00672097,0.000375,2]
[394442112,1763577039789,-36557.62908576,0.000375,2]
[394442113,1763577039826,-2333.36431113,0.000375,2]
[394442131,1763577043067,-4453.56,0.000375,2]
[394442134,1763577043122,-578.34,0.000375,2]
[394442135,1763577043178,-46.79275873,0.000375,2]
[394442136,1763577043188,-185.98499791,0.000375,2]
[394442137,1763577043197,-4297.0999702,0.00037503,2]
[394442138,1763577043206,-500.0,0.00037555,15]
[394442139,1763577043216,-500.0,0.00037555,15]
[394442140,1763577043226,-500.0,0.00037555,15]
[394442141,1763577043235,-168.61747997,0.00037555,15]
[394442142,1763577043247,-500.0,0.00037555,15]
[394442143,1763577043257,-500.0,0.00037555,15]
[394442144,1763577043266,-431.53378443,0.00037555,15]
[394442145,1763577043275,-622.06432657,0.00037555,15]
[394442146,1763577043285,-80747.90668211,0.00037556,4]
[394442147,1763577043296,-67779.18459572,0.00037556,4]
[394442148,1763577043319,-497.63478524,0.00037556,4]
[394442149,1763577043871,-17800.00000001,0.00037556,4]
[394442157,1763577045643,-497.10884607,0.00037555,120]
[394442158,1763577045859,-2.89115393,0.00037555,120]
[394442159,1763577045868,-3752.57081543,0.00037556,4]
[394442160,1763577045880,-268.20000039,0.00037556,4]
[394442161,1763577045891,-580.00000001,0.00037556,4]
[394442162,1763577049399,159.990501,0.00042199,120]
[394442163,1763577049437,151.367863,0.00042199,120]
[394442164,1763577049921,151.367863,0.00042199,120]
[394442165,1763577049975,254.492141,0.00042199,120]
[394442166,1763577050152,161.419696,0.00042199,120]
[394442167,1763577050258,151.367863,0.00042199,120]
[394442168,1763577050584,151.367863,0.00042199,120]
[394442169,1763577050729,161.419696,0.00042199,120]
[394442170,1763577050961,151.367863,0.00042199,120]
[394442171,1763577051045,161.419696,0.00042199,120]
[394442173,1763577166328,150.0,0.00042199,30]
[394442179,1763577411904,165.18,0.00018112,2]
[394442181,1763577426886,229152.48213024,0.00018,2]
[394442182,1763577426912,348163.0,0.00018,2]
[394442183,1763577426938,1305069.13078269,0.00018,2]
[394442184,1763577426969,1500000.0,0.00018,2]
[394442185,1763577427000,1500000.0,0.00018,2]
[394442186,1763577427022,1000.0,0.00018,2]
[394442187,1763577427044,1000.0,0.00018,2]
[394442188,1763577427067,200000.0,0.00018,2]
[394442189,1763577427255,1000.0,0.00018,2]
[394442190,1763577427631,-7532.7853784,0.00018,2]
[394442191,1763577444413,1023.89258802,0.00017999,5]
[394442195,1763577463650,1200.0,0.000169,6]
[394442196,1763577465751,2400.0,0.00017,6]
[394442197,1763577465910,1023.89258802,0.00017999,5]
[394442198,1763577467851,3600.0,0.000171,6]
[394442199,1763577469946,4800.0,0.000172,6]
[394442201,1763577472049,6000.0,0.000173,6]
[394442202,1763577474154,1200.0,0.000174,6]
[394442203,1763577476240,1200.0,0.000175,6]
[394442205,1763577478341,1200.0,0.000176,6]
[394442206,1763577480447,1200.0,0.000177,6]
[394442207,1763577482537,1300.0,0.000178,6]
[394442220,1763577569019,700.37,0.00027714,120]
[394442221,1763577569228,700.37,0.00031178,120]
[394442223,1763577575264,1536.72972664,0.000179,3]
[394442228,1763577614179,-300.0,0.00017899,2]
[394442229,1763577614205,-1200.0,0.00017899,2]
[394442230,1763577614228,-300.0,0.00017899,2]
[394442231,1763577614250,-300.0,0.00017899,2]
[394442232,1763577614274,-5708.20226219,0.000179,2]
[394442233,1763577614297,-247.27121062,0.000179,2]
[394442234,1763577614320,-173.88526696,0.000179,2]
[394442235,1763577614342,-398.53777872,0.000179,2]
[394442236,1763577614364,-4725.14352728,0.000179,2]
[394442237,1763577614388,-86646.95995423,0.000179,2]
[394442239,1763577618252,-12175.3185,0.000179,2]
[394442242,1763577673303,-300.0,0.00017899,2]
[394442243,1763577673326,-98172.5092,0.000179,2]
[394442258,1763577906180,150.0,0.000162,2]
[394442259,1763577906488,150.0,0.000162,2]
[394442260,1763577906562,150.0,0.0001665,2]
[394442261,1763577906635,150.0,0.000171,2]
[394442263,1763577912554,150.0,0.000162,2]
[394442264,1763577912625,150.0,0.000171,2]
[394442265,1763577912765,100.0,0.000162,2]
[394442266,1763577912788,50.0,0.000162,2]
[394442267,1763577912839,150.0,0.000168,2]
[394442268,1763577914840,150.0,0.000162,2]
[394442272,1763577919780,151.70766562,0.000162,2]
[394442273,1763577929061,150.0,0.000162,2]
[394443488,1763578023579,208.7574201,0.00032876,120]
[394443489,1763578023852,1300.0,0.000169,6]
[394443490,1763578025952,2600.0,0.00017,6]
[394443491,1763578028044,4000.0,0.000171,6]
[394443492,1763578030146,5300.0,0.000172,6]
[394443493,1763578032248,6600.0,0.000173,6]
[394443494,1763578034336,1300.0,0.000174,6]
[394443495,1763578036423,1215.48509732,0.000175,6]
[394443496,1763578036454,84.51490268,0.000175,6]
[394443497,1763578038520,1300.0,0.000176,6]
[394443498,1763578040524,-150.0,0.000171,2]
[394443499,1763578040552,-500.0,0.000171,2]
[394443500,1763578040579,-851.81681194,0.000173,2]
[394443501,1763578040609,-150.0,0.000174,2]
[394443502,1763578040635,-176.73782148,0.0001745,2]
[394443503,1763578040663,-150.0,0.0001755,2]
[394443504,1763578040691,-250.0,0.00017799,2]
[394443505,1763578040718,-200.0,0.000178,2]
[394443506,1763578040746,-250.0,0.00017859,2]
[394443507,1763578040777,-500.0,0.00017873,2]
[394443508,1763578040807,-504.44408651,0.00017873,2]
[394443509,1763578040834,-500.0,0.00017873,2]
[394443510,1763578040861,-500.0,0.00017873,2]
[394443511,1763578040888,-500.0,0.00017873,2]
[394443512,1763578040916,-500.0,0.00017873,2]
[394443513,1763578040942,-549.96908235,0.00017873,2]
[394443514,1763578040969,-500.0,0.00017873,2]
[394443515,1763578040995,-500.0,0.00017873,2]
[394443516,1763578041022,-500.38976423,0.00017873,2]
[394443517,1763578041048,-194.92129026,0.00017873,2]
[394443518,1763578041074,-500.60732053,0.00017873,2]
[394443519,1763578041100,-362.55630464,0.00017873,2]
[394443520,1763578041127,-350.17657993,0.00017873,2]
[394443521,1763578041154,-501.23636981,0.00017873,2]
[394443522,1763578041181,-200.58912759,0.00017873,2]
[394443523,1763578041207,-156.55544073,0.00017873,2]
[394443524,1763578041239,1300.0,0.000177,6]
[394443525,1763578042729,1749.0,0.000178,6]
[394443528,1763578074066,568.45,0.00042202,120]
[394443529,1763578074489,568.45,0.00042202,120]
[394443530,1763578074954,568.45,0.00042202,120]
[394443531,1763578075204,568.45,0.00042202,120]
[394443532,1763578075537,568.45,0.00042202,120]
[394443533,1763578075780,568.45,0.00042202,120]
[394443534,1763578076046,568.45,0.00042202,120]
[394443535,1763578076484,568.45,0.00042202,120]
[394443536,1763578076731,568.45,0.00042202,120]
[394443537,1763578076965,568.45,0.00042202,120]
[394443538,1763578077290,568.45,0.00042202,120]
[394443539,1763578077544,568.45,0.00042202,120]
[394443540,1763578077790,568.45,0.00042202,120]
[394443541,1763578078059,568.45,0.00042202,120]
[394443542,1763578078308,568.45,0.00042202,120]
[394443543,1763578078571,568.45,0.00042202,120]
[394443544,1763578078827,568.45,0.00042202,120]
[394443545,1763578079061,568.45,0.00042202,120]
[394443546,1763578080163,568.45,0.00042202,120]
[394443547,1763578080418,568.45,0.00042202,120]
[394443548,1763578080681,568.45,0.00042202,120]
[394443549,1763578080916,568.45,0.00042202,120]
[394443550,1763578081163,568.45,0.00042202,120]
[394443551,1763578081463,568.50433697,0.00042202,120]
[394443552,1763578090963,-195.12518251,0.00017097,2]
[394443553,1763578090987,-321.06888367,0.00017097,2]
[394443554,1763578091010,-5439.97,0.00017097,2]
[394443555,1763578091033,-176.73782147,0.00017625,2]
[394443556,1763578091056,-176.73782147,0.00017799,2]
[394443557,1763578091082,-1200.0,0.00017872,2]
[394443558,1763578091106,-300.0,0.00017872,2]
[394443559,1763578091288,-500.0,0.00017873,2]
[394443560,1763578091313,-500.0,0.00017873,2]
[394443561,1763578091338,-500.0,0.00017873,2]
[394443562,1763578091361,-500.0,0.00017873,2]
[394443563,1763578091384,-500.0,0.00017873,2]
[394443564,1763578091405,-343.44455927,0.00017873,2]
[394443565,1763578091427,-500.0,0.00017873,2]
[394443566,1763578091452,-500.0,0.00017873,2]
[394443567,1763578091477,-1200.0,0.00017898,2]
[394443568,1763578091500,-300.0,0.00017898,2]
[394443569,1763578091521,-550.0,0.00017898,2]
[394443570,1763578091545,-11200.34463264,0.00017899,2]
[394443571,1763578091569,-11200.34463257,0.00017899,2]
[394443572,1763578091593,-11200.34463257,0.00017899,2]
[394443573,1763578091616,-2695.88183383,0.00017899,2]
[394443578,1763578203166,4488.80011634,0.00042202,30]
[394443588,1763578231708,-1350.47615637,0.00017097,2]
[394443589,1763578231764,-501.94384363,0.00017097,2]
[394443590,1763578231774,-150.0,0.000175,2]
[394443591,1763578231784,-245.06,0.00017742,2]
[394443592,1763578231793,-500.0,0.00017873,2]
[394443593,1763578231802,-500.0,0.00017873,2]
[394443594,1763578231811,-500.0,0.00017873,2]
[394443595,1763578231821,-601.61291391,0.00017873,2]
[394443596,1763578231831,-504.82253682,0.00017873,2]
[394443597,1763578231843,-300.0,0.00017898,2]
[394443598,1763578231853,-1200.0,0.00017898,2]
[394443599,1763578231862,-300.0,0.00017898,2]
[394443600,1763578231872,-168.21077644,0.00017899,2]
[394443601,1763578231882,-8504.46279874,0.00017899,2]
[394443602,1763578231891,-168.21077642,0.00017899,2]
[394443603,1763578231900,-9388.85317944,0.00017899,2]
[394443604,1763578232042,-1811.49145313,0.00017899,2]
[394443605,1763578232051,-1175.36091087,0.000179,2]
[394443606,1763578232062,-397.00000002,0.000179,2]
[394443607,1763578232073,-357.24329505,0.000179,2]
[394443608,1763578232088,-5092.53327699,0.000179,2]
[394443609,1763578232100,-4178.20714964,0.000179,2]
[394443610,1763578232109,-1701.79285036,0.000179,2]
[394443611,1763578232120,-1300.0,0.000179,2]
[394443613,1763578232131,-8198.55178221,0.000179,2]
[394443614,1763578232140,-168.21077642,0.000179,2]
[394443616,1763578232150,-11200.34463257,0.000179,2]
[394443618,1763578232159,-780.96157383,0.000179,2]
[394443619,1763578232192,-321.1784,0.000179,2]
[394443620,1763578232206,-434.745,0.000179,2]
[394443621,1763578232261,-0.57651018,0.000179,2]
[394443622,1763578232273,-465.1218,0.000179,2]
[394443623,1763578232284,-371.86527032,0.000179,2]
[394443624,1763578232296,-1861.86,0.000179,2]
[394443632,1763578237875,-6964.03607824,0.000179,2]
[394443633,1763578237885,-1509.43,0.000179,2]
[394443634,1763578237894,-182.114,0.000179,2]
[394443635,1763578237904,-1522.41992176,0.000179,2]
[394443637,1763578237924,-1456.17236326,0.000179,2]
[394443638,1763578237981,-3862.49456283,0.000179,2]
[394443639,1763578237992,-4359.25778472,0.000179,2]
[394443640,1763578238001,-1601.1808,0.000179,2]
[394443641,1763578238011,-7480.90576177,0.000179,2]
[394443642,1763578238020,-9080.91443376,0.000179,2]
[394443643,1763578238029,-168.21077642,0.000179,2]
[394443644,1763578238038,-362.75739818,0.000179,2]
[394443645,1763578238047,-22011.28462228,0.000179,2]
[394443646,1763578238057,-8630.48934596,0.000179,2]
[394443647,1763578238066,-5710.16283898,0.000179,2]
[394443648,1763578238075,-1597.92027417,0.000179,2]
[394443649,1763578238085,-2391.13055402,0.000179,2]
[394443650,1763578238094,-500.0,0.00017973,2]
[394443651,1763578238103,-500.0,0.00017973,2]
[394443652,1763578238112,-500.0,0.00017973,2]
[394443653,1763578238122,-500.0,0.00017973,2]
[394443654,1763578238131,-500.0,0.00017973,2]
[394443655,1763578238141,-172.81844873,0.00017973,2]
[394443656,1763578238150,-500.376468,0.00017973,2]
[394443657,1763578238159,-500.0,0.00017973,2]
[394443658,1763578238168,-500.0,0.00017973,2]
[394443659,1763578238178,-500.0,0.00017973,2]
[394443660,1763578238187,-500.0,0.00017973,2]
[394443662,1763578238197,-500.0,0.00017973,2]
[394443664,1763578238209,-500.0,0.00017973,2]
[394443666,1763578238218,-500.0,0.00017973,2]
[394443667,1763578238227,-500.0,0.00017973,2]
[394443670,1763578238237,-506.74684174,0.00017973,2]
[394443671,1763578238246,-500.0,0.00017973,2]
[394443673,1763578238255,-162.81944171,0.00017973,2]
[394443676,1763578238264,-500.0,0.00017973,2]
[394443678,1763578238274,-500.0,0.00017973,2]
[394443680,1763578238283,-500.0,0.00017973,2]